bitfinex-derivatives/quotes_ETHF0:USTF0_20250115
["timestamp","ask_amount","ask_price","bid_price","bid_amount"]
[1736969720322,0.58625,3411.0,3410.9,2.35240982]
[1736969723424,5.0,3411.0,3409.5,3.2078]
[1736969723632,0.481,3411.4,3409.5,5.56020982]
[1736969723633,0.58649,3409.6,3409.5,5.56020982]
[1736969723830,0.58648,3409.7,3409.5,5.56020982]
[1736969724025,0.58649,3409.6,3409.5,5.56020982]
[1736969724525,3.2078,3410.1,3409.2,2.35240982]
[1736969724720,0.58656,3409.2,3409.1,0.4606]
[1736969725423,1.46635,3409.4,3408.6,3.69940982]
[1736969725630,3.2078,3409.3,3408.3,2.35240982]
[1736969725926,0.58663,3408.8,3408.6,2.35240982]
[1736969726126,0.58663,3408.8,3408.6,2.93905982]
[1736969726326,1.46627,3409.5,3408.5,3.2078]
[1736969726327,0.58666,3408.6,3408.5,3.2078]
[1736969726522,0.58666,3408.6,3408.5,3.79448]
[1736969726718,0.58663,3408.8,3408.6,0.58666]
[1736969726922,0.58663,3408.8,3408.7,2.35240982]
[1736969727121,3.2078,3409.3,3408.7,2.35240982]
[1736969727323,1.46627,3409.5,3408.3,0.4439]
[1736969727324,3.2078,3410.0,3409.0,2.35240982]
[1736969727531,0.58655,3409.3,3409.2,3.2078]
[1736969729229,0.58657,3409.1,3409.0,2.35240982]
[1736969730227,1.46618,3409.7,3409.0,2.35240982]
[1736969730427,0.58656,3409.2,3409.1,3.2078]
[1736969730938,0.58656,3409.2,3409.1,44.0078]
[1736969731232,1.46609,3409.9,3409.1,44.59436]
[1736969731535,0.58653,3409.4,3409.2,0.58655]
[1736969731731,3.2078,3410.0,3409.1,44.4891]
[1736969731732,0.58651,3409.5,3409.1,44.4891]
[1736969731937,0.58648,3409.7,3409.3,2.35240982]
[1736969732233,0.58648,3409.7,3409.6,5.56020982]
[1736969732635,0.58648,3409.7,3409.6,3.2078]
[1736969735635,3.2078,3410.1,3409.3,2.35240982]
[1736969735837,0.58652,3409.4,3409.3,2.35240982]
[1736969736034,0.58651,3409.5,3409.3,2.35240982]
[1736969736241,0.58649,3409.6,3409.4,0.58651]
[1736969737541,0.58652,3409.4,3409.3,2.35240982]
[1736969739939,0.58652,3409.4,3409.3,2.93894982]
[1736969740139,0.58652,3409.4,3409.3,2.35240982]
[1736969740636,0.58654,3409.3,3409.2,3.2078]
[1736969741738,1.46615,3409.8,3409.1,0.4813]
[1736969742040,2.35240982,3410.0,3408.8,44.4891]
[1736969742041,3.2078,3409.6,3408.8,44.4891]
[1736969742341,0.58661,3408.9,3408.8,3.6891]
[1736969742740,0.58661,3408.9,3408.8,44.4891]
[1736969744135,0.89,3409.5,3408.8,44.4891]
[1736969744336,0.58656,3409.2,3408.9,0.58661]
[1736969744537,0.89,3409.5,3408.8,44.4891]
[1736969744732,0.58657,3409.2,3409.1,0.58657]
[1736969744944,3.2078,3409.6,3408.8,44.4891]
[1736969745244,0.5866,3409.0,3408.9,0.58659]
[1736969745546,0.58657,3409.2,3409.1,0.58656]
[1736969745934,0.58661,3408.9,3408.8,45.07571]
[1736969746338,0.58661,3408.9,3408.8,44.0078]
[1736969746543,0.58661,3408.9,3408.8,3.2078]
[1736969746936,3.2078,3409.0,3408.3,3.2078]
[1736969747253,0.58669,3408.4,3408.3,3.79449]
[1736969747541,0.58669,3408.4,3408.3,3.2078]
[1736969749346,3.2078,3409.0,3408.3,3.2078]
[1736969749546,0.58666,3408.7,3408.6,0.58665]
[1736969749743,0.58668,3408.5,3408.4,44.21498982]
[1736969749948,3.2078,3409.4,3408.4,43.62830982]
[1736969750246,0.58651,3409.6,3409.5,0.5865]
[1736969750450,0.58652,3409.5,3409.4,0.58652]
[1736969750947,2.35240982,3410.4,3409.4,0.58652]
[1736969750948,3.2078,3411.4,3409.4,49.49140982]
[1736969751144,3.2078,3411.4,3410.5,3.2078]
[1736969751340,0.58625,3411.0,3410.9,0.58625]
[1736969751543,3.2078,3411.4,3410.5,4.5468]
[1736969751843,1.95003,3411.7,3410.9,3.2078]
[1736969752045,0.58622,3411.2,3411.0,0.58624]
[1736969752647,0.58622,3411.2,3411.0,0.58623]
[1736969752846,0.4847,3411.7,3410.9,3.2078]
[1736969753143,0.58618,3411.4,3411.0,0.58625]
[1736969753348,0.58617,3411.5,3411.3,0.58618]
[1736969753546,5.56020982,3411.8,3410.9,3.2078]
[1736969753744,5.56020982,3411.8,3411.0,0.58625]
[1736969753946,1.46532,3411.7,3410.9,3.2078]
[1736969754243,1.46532,3411.7,3410.7,2.35240982]
[1736969754244,0.58618,3411.4,3410.7,0.58629]
[1736969754445,0.58631,3410.6,3410.5,1.92432]
[1736969754645,4.67325,3411.4,3410.4,1.7943]
[1736969754851,3.2078,3411.4,3410.4,1.7943]
[1736969755042,0.5863,3410.7,3410.5,0.58633]
[1736969755348,1.46549,3411.3,3410.4,1.7943]
[1736969755553,0.58632,3410.6,3410.5,0.58632]
[1736969755746,0.58631,3410.6,3410.5,0.58632]
[1736969756050,0.58638,3410.3,3410.0,1.92442]
[1736969756351,1.46571,3410.8,3410.0,1.338]
[1736969756649,1.46571,3410.8,3410.0,0.58641]
[1736969756837,1.4658,3410.6,3409.9,6.89820982]
[1736969757146,0.58642,3410.0,3409.9,3.2078]
[1736969757546,1.4658,3410.6,3409.9,5.56020982]
[1736969757737,0.58641,3410.1,3409.9,5.56020982]
[1736969758047,1.4658,3410.6,3409.9,6.14663982]
[1736969758546,1.46568,3410.9,3409.9,5.56020982]
[1736969758547,0.58642,3410.0,3409.9,5.56020982]
[1736969759148,0.58642,3410.0,3409.9,3.2078]
[1736969760247,0.4836,3410.5,3409.5,3.2078]
[1736969760248,3.2078,3410.2,3409.5,3.2078]
[1736969760549,0.58657,3409.1,3409.0,0.60161]
[1736969760748,0.58657,3409.1,3409.0,0.01502]
[1736969766147,1.46635,3409.3,3408.1,6.01582579]
[1736969766354,1.46665,3408.6,3407.9,0.58678]
[1736969766650,1.46665,3408.6,3407.9,41.38678]
[1736969766851,0.58676,3408.0,3407.9,40.8]
[1736969767352,0.58676,3408.0,3407.9,41.38678]
[1736969767546,0.58676,3408.0,3407.9,0.58678]
[1736969767749,1.46665,3408.6,3407.7,3.6906]
[1736969767949,1.46665,3408.6,3407.8,40.8]
[1736969768149,3.2078,3408.7,3408.0,0.58675]
[1736969768150,0.58673,3408.2,3408.0,0.58675]
[1736969768653,3.2078,3408.7,3407.8,42.139]
[1736969768849,0.58674,3408.2,3407.8,40.8]
[1736969769050,3.2078,3408.7,3408.0,2.80802579]
[1736969769453,0.58668,3408.5,3408.4,0.58668]
[1736969770554,3.2078,3408.7,3408.2,4.5468]
[1736969770753,0.58668,3408.5,3408.4,0.58668]
[1736969771352,3.6811,3409.7,3408.4,2.80802579]
[1736969771549,3.6811,3409.7,3408.6,3.2078]
[1736969771751,1.46605,3410.1,3409.0,3.2078]
[1736969771946,6.01582579,3410.3,3409.4,3.2078]
[1736969771947,4.67372,3410.3,3409.4,3.2078]
[1736969772149,0.58644,3409.9,3409.8,0.58644]
[1736969772751,3.2078,3410.3,3409.5,0.4465]
[1736969772953,4.67373,3410.3,3409.8,0.58645]
[1736969773152,0.58645,3409.9,3409.8,0.58645]
[1736969773353,0.58645,3409.9,3409.8,0.58644]
[1736969773759,1.46589,3410.4,3409.8,3.2078]
[1736969773958,0.58643,3410.0,3409.9,0.58643]
[1736969774556,0.58643,3409.9,3409.8,3.79423]
[1736969775760,0.58643,3409.9,3409.8,3.2078]
[1736969776563,3.2078,3410.3,3409.2,1.328]
[1736969776762,0.58657,3409.1,3409.0,3.79438]
[1736969777160,0.58657,3409.1,3409.0,3.79439]
[1736969777367,0.58657,3409.1,3409.0,3.2078]
[1736969777765,3.2078,3409.4,3408.6,3.2078]
[1736969777972,0.00406641,3410.9,3409.3,2.80802579]
[1736969778171,0.00406641,3410.9,3410.8,3.79408]
[1736969778371,3.2078,3412.1,3410.8,45.3348]
[1736969778571,0.58619,3411.3,3411.2,3.2078]
[1736969778772,6.01582579,3412.5,3411.2,3.2078]
[1736969778966,0.58616,3411.6,3411.3,0.58618]
[1736969779178,6.01582579,3412.5,3411.2,3.2078]
[1736969779478,3.2078,3412.5,3411.7,3.2078]
[1736969779682,0.586,3412.4,3411.8,0.58611]
[1736969779978,0.586,3412.4,3411.7,3.79391]
[1736969780179,0.58606,3412.1,3411.8,0.58611]
[1736969780675,3.2078,3412.5,3411.7,3.2078]
[1736969781274,3.2078,3412.5,3411.8,0.5861]
[1736969781481,3.2078,3412.5,3411.8,0.58611]
[1736969781783,0.58607,3412.1,3411.8,0.58611]
[1736969782282,3.2078,3412.5,3411.7,3.2078]
[1736969782283,3.7938,3412.5,3411.7,3.2078]
[1736969782580,3.7938,3412.5,3412.2,0.58603]
[1736969782581,3.2078,3412.5,3412.2,0.58603]
[1736969782777,0.4552,3413.2,3412.3,2.80802579]
[1736969783079,0.58592,3412.9,3412.8,3.2078]
[1736969785776,6.01582579,3413.0,3412.4,3.2078]
[1736969786076,2.966,3417.3,3411.7,0.4819]
[1736969786077,0.58585,3413.3,3412.9,3.7937]
[1736969786284,0.58575,3413.9,3413.5,0.58581]
[1736969786581,3.2078,3414.2,3413.4,3.2078]
[1736969786980,0.58571,3414.1,3413.5,0.58581]
[1736969787180,3.2078,3414.2,3413.0,3.6487]
[1736969787181,0.58577,3413.8,3413.0,3.6487]
[1736969787483,0.58577,3413.8,3413.5,0.58581]
[1736969787672,3.2078,3414.2,3413.4,3.2078]
[1736969787879,3.2078,3414.2,3413.4,4.5348]
[1736969788479,3.2078,3414.2,3413.5,0.58581]
[1736969788677,3.2078,3414.6,3413.6,2.80802579]
[1736969788875,0.21510768,3415.8,3414.2,3.2078]
[1736969788876,0.5856,3414.8,3414.2,3.2078]
[1736969789183,3.2078,3415.1,3414.2,3.2078]
[1736969789184,0.58557,3415.0,3414.5,0.58564]
[1736969789387,0.58556,3415.0,3414.5,0.58563]
[1736969789587,2.80802579,3415.6,3414.3,1.38]
[1736969789588,0.58559,3414.9,3414.7,3.2078]
[1736969789776,3.2078,3415.5,3414.7,3.2078]
[1736969789976,0.58559,3414.8,3414.7,3.2078]
[1736969790279,2.80802579,3414.8,3413.9,3.2078]
[1736969790483,0.5858,3413.6,3413.5,3.2078]
[1736969790676,3.2078,3414.4,3413.5,3.2078]
[1736969790979,3.2078,3414.0,3413.3,0.4577]
[1736969791184,0.58583,3413.4,3413.3,0.4577]
[1736969792385,2.80802579,3414.4,3413.3,0.4577]
[1736969792684,0.58576,3413.9,3413.5,3.2078]
[1736969792884,2.80802579,3414.4,3413.5,3.2078]
[1736969793082,0.58578,3413.7,3413.5,3.79361]
[1736969793385,3.2078,3414.5,3413.5,3.2078]
[1736969793788,29.25829,3417.4,3414.1,3.79351]
[1736969793789,0.58569,3414.3,3414.1,3.79351]
[1736969794087,3.2078,3415.4,3414.2,2.80802579]
[1736969794279,3.2078,3415.4,3414.7,3.2078]
[1736969794481,3.2078,3415.4,3414.7,4.5878]
[1736969794883,3.2078,3415.4,3414.9,0.58557]
[1736969795081,3.2078,3415.4,3414.7,4.5878]
[1736969795283,0.58557,3415.0,3414.7,5.17339]
[1736969795486,0.58552,3415.3,3415.0,0.58554]
[1736969795686,0.58552,3415.3,3415.1,3.79334]
[1736969795687,0.58551,3415.3,3415.1,3.79334]
[1736969795888,5.08212983,3416.3,3415.1,3.2078]
[1736969795889,1.46335,3416.3,3415.1,3.2078]
[1736969796188,1.46335,3416.3,3415.5,3.2078]
[1736969796487,0.58535,3416.3,3416.0,3.79318]
[1736969796683,0.58537,3416.1,3416.0,3.2078]
[1736969796887,3.2078,3416.5,3416.0,3.2078]
[1736969797085,3.2078,3417.0,3416.0,3.2078]
[1736969797289,2.4791,3417.0,3416.4,3.2078]
[1736969797589,2.4791,3417.0,3415.6,3.62427983]
[1736969797590,0.00448329,3418.0,3417.7,0.58509]
[1736969797788,0.00448329,3418.0,3417.8,4.5878]
[1736969797988,0.00448329,3418.0,3417.8,3.79287]
[1736969798283,0.21664897,3420.1,3417.9,11.926]
[1736969798491,1.85125639,3419.4,3419.3,3.79262]
[1736969798793,1.85125639,3419.4,3419.3,3.2078]
[1736969799187,2.06630704,3419.4,3418.8,3.2078]
[1736969799492,0.58496,3418.5,3418.4,3.2078]
[1736969799698,3.2078,3419.3,3418.4,3.2078]
[1736969799891,0.58496,3418.5,3418.4,3.2078]
[1736969800093,3.2078,3419.3,3418.0,3.2078]
[1736969800094,0.58503,3418.1,3418.0,3.2078]
[1736969800288,2.06630704,3419.4,3418.0,3.2078]
[1736969800289,2.06630704,3419.4,3418.0,44.0078]
[1736969800492,0.58487,3419.1,3418.5,3.2078]
[1736969800692,1.85125639,3419.4,3418.1,6.38377983]
[1736969800693,3.2078,3419.2,3418.1,6.38377983]
[1736969800990,3.2078,3418.4,3417.6,4.60997983]
[1736969801196,3.2078,3417.8,3417.6,3.17597983]
[1736969801394,0.58503,3418.1,3417.6,3.17597983]
[1736969801592,3.2078,3418.2,3418.1,0.58503]
[1736969801789,3.2078,3418.3,3418.0,3.17597983]
[1736969801984,3.2078,3418.3,3418.2,0.58501]
[1736969802293,3.2078,3419.1,3418.2,3.2078]
[1736969802489,3.2078,3419.2,3418.7,3.17597983]
[1736969802692,3.2078,3419.1,3418.7,4.60897983]
[1736969802991,3.2078,3419.1,3418.7,3.17597983]
[1736969803192,3.2078,3419.1,3418.2,3.17597983]
[1736969803390,3.2078,3419.3,3418.7,3.17597983]
[1736969803592,3.2078,3418.9,3418.7,3.17597983]
[1736969804089,3.2078,3418.9,3418.2,3.17597983]
[1736969804292,1.85125639,3419.4,3418.2,3.17597983]
[1736969804293,3.2078,3418.5,3418.2,3.17597983]
[1736969804999,3.79277,3418.5,3418.2,3.17597983]
[1736969805302,0.58499,3418.4,3418.2,3.17597983]
[1736969805498,0.58498,3418.4,3418.2,3.17597983]
[1736969805691,3.2078,3418.5,3418.2,3.17597983]
[1736969805990,3.79276,3418.5,3418.2,3.17597983]
[1736969806200,0.58499,3418.3,3418.2,3.17597983]
[1736969806589,3.2078,3418.5,3417.7,7.87277983]
[1736969806784,3.2078,3418.5,3417.7,5.25005983]
[1736969806785,0.585,3418.3,3417.7,5.25005983]
[1736969806991,1.85125639,3419.4,3417.7,5.25005983]
[1736969806992,1.85125639,3419.4,3418.2,6.38377983]
[1736969807296,2.92236,3421.4,3418.2,6.38377983]
[1736969807297,3.2078,3420.6,3419.3,6.38377983]
[1736969807499,0.58455,3420.9,3420.5,3.17597983]
[1736969807697,3.2086,3421.2,3420.7,0.58458]
[1736969807892,3.2086,3421.2,3420.6,0.58458]
[1736969807893,3.7931,3421.2,3420.6,0.58458]
[1736969808093,3.2078,3420.7,3420.5,3.17597983]
[1736969808307,3.2078,3420.7,3420.0,3.17597983]
[1736969809196,0.58467,3420.2,3420.0,3.17597983]
[1736969809401,0.58469,3420.1,3420.0,3.17597983]
[1736969809800,3.2078,3420.2,3420.0,3.17597983]
[1736969809998,0.58477,3419.6,3419.5,6.38377983]
[1736969810295,0.58489,3419.0,3418.5,4.66397983]
[1736969810504,0.58492,3418.8,3418.5,3.17597983]
[1736969810702,3.2078,3419.2,3418.5,3.17597983]
[1736969810905,0.58493,3418.7,3418.5,3.17597983]
[1736969811604,3.2078,3419.2,3418.5,3.17597983]
[1736969811605,0.58491,3418.8,3418.5,3.17597983]
[1736969811800,0.58491,3418.9,3418.5,3.17597983]
[1736969812197,0.58491,3418.9,3418.5,3.76093983]
[1736969812598,0.58491,3418.9,3418.5,3.17597983]
[1736969812798,0.58485,3419.2,3418.8,3.79271]
[1736969813003,0.58494,3418.6,3418.5,3.17597983]
[1736969813392,3.2078,3419.0,3418.0,48.67177983]
[1736969813606,0.58502,3418.2,3418.0,48.67177983]
[1736969813799,0.4756,3419.1,3418.0,43.97597983]
[1736969813800,3.2078,3418.6,3418.0,43.97597983]
[1736969814000,0.58503,3418.1,3418.0,43.97597983]
[1736969814406,3.2078,3418.6,3418.0,43.97597983]
[1736969814605,0.58501,3418.2,3418.0,43.97597983]
[1736969814807,3.2078,3418.6,3418.0,43.97597983]
[1736969815104,0.58503,3418.1,3418.0,43.97597983]
[1736969816008,3.2078,3418.6,3418.0,43.97597983]
[1736969816009,0.58501,3418.3,3418.0,43.97597983]
[1736969816202,0.58502,3418.2,3418.0,43.97597983]
[1736969816396,0.58496,3418.5,3418.1,0.58501]
[1736969816602,0.585,3418.3,3418.0,44.56101983]
[1736969816997,0.58501,3418.3,3418.0,43.97597983]
[1736969817198,0.58501,3418.2,3418.0,43.97597983]
[1736969817399,3.2078,3418.6,3418.0,43.97597983]
[1736969817900,0.58503,3418.1,3418.0,43.97597983]
[1736969818305,3.2078,3419.5,3418.0,52.18377983]
[1736969818513,0.58485,3419.2,3419.0,3.17597983]
[1736969818806,3.2078,3419.5,3419.0,3.17597983]
[1736969819006,0.58484,3419.2,3419.1,40.8]
[1736969819204,3.2078,3419.9,3419.1,40.8]
[1736969819402,3.2078,3419.5,3419.1,40.8]
[1736969819603,0.58484,3419.2,3419.1,40.8]
[1736969819801,3.2078,3422.6,3419.5,3.2078]
[1736969820002,3.2078,3422.6,3421.1,6.96828983]
[1736969820201,0.474,3423.6,3421.1,8.45628983]
[1736969820202,4.66826,3423.1,3421.1,8.45628983]
[1736969820402,0.58428,3422.5,3421.1,13.45628983]
[1736969820608,0.58429,3422.5,3421.3,0.58448]
[1736969820811,0.5843,3422.4,3421.9,0.58437]
[1736969821008,3.2078,3422.7,3421.7,3.17597983]
[1736969821308,3.2078,3423.2,3422.0,3.2078]
[1736969821513,0.58422,3422.9,3422.4,0.58428]
[1736969821705,3.2078,3423.2,3422.4,3.2078]
[1736969822108,3.2078,3423.2,3421.2,1.46125]
[1736969822109,0.5844,3421.8,3421.4,0.58445]
[1736969822307,0.58435,3422.1,3421.7,0.5844]
[1736969822511,3.2078,3422.3,3421.6,3.2078]
[1736969822810,0.58436,3422.1,3421.8,0.58438]
[1736969823008,3.2078,3422.3,3421.8,0.58439]
[1736969823312,0.58452,3421.1,3420.8,0.58455]
[1736969823512,3.17597983,3422.6,3420.8,0.58455]
[1736969823513,3.2078,3422.1,3421.0,3.2078]
[1736969823808,3.2078,3422.1,3420.8,3.17597983]
[1736969824105,0.58457,3420.8,3420.4,0.58462]
[1736969824311,3.2078,3421.1,3420.3,6.38377983]
[1736969824507,3.2078,3421.0,3420.2,3.2078]
[1736969824805,0.9147,3422.0,3418.9,2.83219383]
[1736969824806,3.2078,3420.6,3419.8,3.2078]
[1736969825207,0.58472,3419.9,3419.8,3.2078]
[1736969825404,4.66934,3420.6,3419.8,3.2078]
[1736969825612,0.1509,3419.9,3419.8,3.2078]
[1736969826009,0.96952,3419.9,3419.8,3.2078]
[1736969826505,0.58479,3419.5,3419.4,3.2078]
[1736969826707,0.58486,3419.1,3419.0,3.2078]
[1736969827213,2.67156,3419.1,3419.0,3.2078]
[1736969827411,2.3206,3419.1,3418.6,6.38377983]
[1736969827612,2.3206,3419.1,3417.0,0.7418]
[1736969827613,0.58495,3418.6,3418.3,0.58498]
[1736969827813,2.3206,3419.1,3418.4,0.34782747]
[1736969828010,2.3206,3419.1,3418.2,3.2078]
[1736969828212,0.58499,3418.3,3418.2,3.2078]
[1736969828408,1.75509,3418.3,3418.2,3.2078]
[1736969828904,1.1701,3418.3,3418.2,3.2078]
[1736969829107,1.1701,3418.3,3418.2,4.14070376]
[1736969829306,1.1701,3418.3,3418.2,9.23238588]
[1736969829509,0.58488,3419.0,3418.6,0.58493]
[1736969829710,0.58489,3418.9,3418.8,6.38377983]
[1736969830717,1.75479,3418.9,3418.8,6.38377983]
[1736969831310,1.1699,3418.9,3418.8,6.38377983]
[1736969831520,1.1699,3418.9,3418.8,6.96868983]
[1736969831815,1.1699,3418.9,3418.8,7.31632708]
[1736969832010,2.3206,3419.1,3418.8,11.73141708]
[1736969832011,1.5895,3419.1,3418.8,11.73141708]
[1736969832314,0.3848,3419.9,3419.8,0.58474]
[1736969832505,0.3848,3419.9,3419.8,3.52334424]
[1736969832706,0.96952,3419.9,3419.8,3.17597983]
[1736969833411,2.0184,3419.9,3419.3,3.17597983]
[1736969833715,0.58479,3419.5,3419.4,40.8]
[1736969833910,0.58481,3419.4,3419.3,3.17597983]
[1736969835110,1.46185,3419.8,3419.1,40.8]
[1736969835309,0.58484,3419.2,3419.1,40.8]
[1736969835505,1.46189,3419.7,3419.0,3.2078]
[1736969835506,0.58486,3419.1,3419.0,3.2078]
[1736969836116,0.58493,3418.7,3418.6,3.2078]
[1736969836419,0.58498,3418.4,3418.3,3.17597983]
[1736969836615,0.58498,3418.4,3418.3,3.52389235]
[1736969837416,0.58498,3418.4,3418.3,3.52396548]
[1736969839216,0.58498,3418.4,3418.3,3.17597983]
[1736969840718,3.2078,3418.7,3418.2,3.2078]
[1736969840719,0.58499,3418.3,3418.2,3.2078]
[1736969841911,0.58495,3418.6,3418.2,3.2078]
[1736969842117,3.6664,3419.8,3418.6,3.17597983]
[1736969842313,0.58491,3418.8,3418.7,3.2078]
[1736969843619,0.58498,3418.4,3418.3,3.2078]
[1736969844917,0.58506,3417.9,3417.8,3.2078]
[1736969845112,1.46227,3418.9,3417.8,3.55583652]
[1736969845310,0.58499,3418.3,3418.2,3.2078]
[1736969845514,3.2078,3419.0,3417.8,3.2078]
[1736969845718,0.58513,3417.5,3417.4,3.79294]
[1736969845919,0.58511,3417.7,3417.6,0.58511]
[1736969846116,0.58511,3417.7,3417.6,40.8]
[1736969846521,1.46253,3418.3,3417.6,41.3851]
[1736969847020,0.4443,3418.5,3417.8,3.2078]
[1736969847222,0.58506,3418.0,3417.9,0.58506]
[1736969847421,0.58506,3417.9,3417.8,3.2078]
[1736969848123,3.2078,3418.2,3417.1,3.17597983]
[1736969848315,0.5852,3417.1,3417.0,0.25]
[1736969848721,0.58517,3417.3,3417.0,0.25]
[1736969848920,3.2078,3418.2,3417.0,0.25]
[1736969849112,0.5852,3417.1,3417.0,0.25]
[1736969849624,0.8265,3417.1,3417.0,0.25]
[1736969850728,1.997,3417.1,3417.0,0.25]
[1736969852523,0.58532,3416.4,3416.3,3.2078]
[1736969852725,1.4118,3417.1,3416.3,3.2078]
[1736969852927,1.4118,3417.1,3417.0,3.79302]
[1736969853621,1.5686,3417.1,3417.0,44.0078]
[1736969853817,1.5686,3417.1,3417.0,3.2078]
[1736969853818,2.1538,3417.1,3417.0,3.2078]
[1736969854120,2.1538,3417.1,3416.6,3.2078]
[1736969854121,0.58527,3416.7,3416.6,3.2078]
[1736969854517,4.67087,3417.0,3416.2,3.2078]
[1736969854728,4.67087,3417.0,3415.4,3.2078]
[1736969854729,0.4788,3416.9,3415.4,3.2078]
[1736969855024,0.58542,3415.8,3415.5,3.17597983]
[1736969855226,3.2078,3416.5,3415.5,3.17597983]
[1736969855422,0.58547,3415.5,3415.4,3.79328]
[1736969855623,1.46343,3416.2,3415.4,3.2078]
[1736969855624,0.58547,3415.6,3415.4,3.2078]
[1736969855826,1.46335,3416.3,3415.4,3.2078]
[1736969856017,0.58547,3415.5,3415.4,3.79328]
[1736969856220,1.46343,3416.1,3415.4,3.79328]
[1736969856527,3.2078,3416.4,3415.4,3.79328]
[1736969856528,0.58547,3415.5,3415.4,3.2078]
[1736969856724,3.2078,3416.0,3415.4,3.2078]
[1736969857023,3.2078,3416.0,3415.4,3.79329]
[1736969857219,0.58547,3415.5,3415.4,3.2078]
[1736969857420,3.2078,3416.5,3415.4,3.2078]
[1736969857722,0.58546,3415.6,3415.5,0.58546]
[1736969857917,1.46331,3416.4,3415.4,3.2078]
[1736969858122,0.58547,3415.5,3415.4,3.2078]
[1736969858820,2.04863,3416.4,3415.6,0.58545]
[1736969859123,4.67106,3416.5,3415.4,3.2078]
[1736969859332,0.58545,3415.7,3415.5,0.58547]
[1736969859623,0.58547,3415.5,3415.4,3.2078]
[1736969860021,0.58547,3415.5,3415.4,3.79329]
[1736969860324,0.58547,3415.5,3415.4,44.0078]
[1736969860630,0.58547,3415.5,3415.4,3.2078]
[1736969862025,0.58539,3416.0,3415.9,0.5854]
[1736969862323,0.58539,3416.0,3415.9,40.8]
[1736969862526,0.58547,3415.5,3415.4,3.2078]
[1736969863522,3.2078,3415.6,3414.8,3.2078]
[1736969863731,0.58558,3414.9,3414.8,3.2078]
[1736969864428,0.81808,3414.9,3414.8,3.2078]
[1736969865922,1.05228,3414.9,3414.8,3.2078]
[1736969866421,0.4667,3414.9,3414.8,3.79339]
[1736969867225,0.4667,3414.9,3414.8,3.2078]
[1736969867521,1.05228,3414.9,3414.8,3.2078]
[1736969868230,1.05228,3414.9,3414.8,3.79339]
[1736969868422,0.4667,3414.9,3414.8,3.79339]
[1736969868822,1.638,3414.9,3414.8,3.79339]
[1736969869027,0.9092,3414.9,3414.8,8.79339]
[1736969869224,0.9092,3414.9,3414.8,9.14129191]
[1736969869522,3.2078,3416.0,3414.8,3.55570191]
[1736969869723,0.58547,3415.5,3415.4,3.2078]
[1736969870118,1.46363,3415.7,3415.2,0.58552]
[1736969870324,0.58552,3415.3,3415.2,0.58552]
[1736969870627,0.62592,3415.3,3415.2,0.58552]
[1736969871632,0.58554,3415.2,3415.1,0.58553]
[1736969871930,0.62592,3415.3,3415.2,0.58552]
[1736969872131,0.0404,3415.3,3415.2,0.58552]
[1736969872527,0.58563,3414.7,3414.6,0.58561]
[1736969872724,0.5856,3414.9,3414.8,0.58558]
[1736969872919,0.58564,3414.6,3414.2,0.58569]
[1736969873129,0.58564,3414.6,3414.5,0.58564]
[1736969873630,3.2078,3415.2,3414.3,40.8]
[1736969873831,0.0404,3415.3,3414.7,3.2078]
[1736969874035,0.58555,3415.1,3415.0,0.58555]
[1736969874325,0.0404,3415.3,3414.7,3.2078]
[1736969874528,0.58555,3415.1,3415.0,0.58555]
[1736969874727,0.0404,3415.3,3414.7,3.2078]
[1736969874926,0.0404,3415.3,3414.5,2.93008]
[1736969874927,0.62591,3415.3,3415.2,3.63292]
[1736969875329,0.0404,3415.3,3415.2,3.98196906]
[1736969876026,0.0404,3415.3,3415.2,44.78196906]
[1736969876027,0.62591,3415.3,3415.2,44.78196906]
[1736969876226,0.62591,3415.3,3415.2,44.78217647]
[1736969876430,0.86011,3415.3,3415.2,44.78217647]
[1736969876824,0.86011,3415.3,3415.2,44.19665647]
[1736969877228,0.2746,3415.3,3415.2,3.0474]
[1736969877428,0.2746,3415.3,3415.2,3.98253271]
[1736969877630,0.86011,3415.3,3415.2,44.78254571]
[1736969877829,0.86741,3415.3,3415.2,3.98254571]
[1736969878028,0.86741,3415.3,3415.2,3.98254667]
[1736969878229,0.2819,3415.3,3415.2,3.98254667]
[1736969879737,0.2819,3415.3,3415.2,44.78254667]
[1736969879931,0.2819,3415.3,3415.2,44.43292]
[1736969880131,0.2819,3415.3,3415.2,44.78298971]
[1736969880830,0.2819,3415.3,3415.2,3.98298971]
[1736969881434,0.2819,3415.3,3415.2,3.98339175]
[1736969881637,0.2342,3415.7,3415.6,0.58546]
[1736969881829,0.2342,3415.7,3415.6,4.14361588]
[1736969882035,0.2342,3415.7,3415.6,4.14357839]
[1736969882235,0.2342,3415.7,3415.6,44.94357839]
[1736969882836,0.483,3415.7,3415.6,44.94357839]
[1736969883439,0.483,3415.7,3415.6,45.0367619]
[1736969884034,1.03193,3416.4,3415.6,45.0367619]
[1736969884234,1.03193,3416.4,3416.3,0.58534]
[1736969884235,0.4466,3416.4,3416.3,0.58534]
[1736969884436,0.4466,3416.4,3416.2,3.2078]
[1736969884638,0.58534,3416.3,3416.2,3.79314]
[1736969884839,0.4466,3416.4,3416.3,0.58534]
[1736969885135,1.03192,3416.4,3416.3,0.58534]
[1736969885338,0.1103,3416.4,3416.3,3.38176682]
[1736969885537,0.1103,3416.4,3416.3,5.19837275]
[1736969885937,0.1103,3416.4,3416.3,5.29115485]
[1736969886539,0.1103,3416.4,3416.3,46.09115485]
[1736969887245,0.1103,3416.4,3416.3,45.99763884]
[1736969887542,0.1103,3416.4,3416.3,43.20121202]
[1736969889238,0.1103,3416.4,3416.3,47.85134]
[1736969889438,0.58512,3417.6,3417.5,0.58512]